[Event "MČR juniorů a juniorek v rapid šachu 2024"]
[Site "Hotel Fit Fun, Harrachov, Czech Republic"]
[Date "2024.09.21"]
[Round "4.6"]
[White "Zadrapova Amalie"]
[Black "Jun Rudolf"]
[Result "0-1"]
[TimeControl "20+5"]
[WhiteFideId "23710276"]
[BlackFideId "376612"]
[WhiteElo "1891"]
[BlackElo "2142"]

1. e4 {[%clk 00:20:07]} {[%emt 00:00:02]} c5 {[%clk 00:20:09]} {[%emt
00:00:02]} 2. Nf3 {[%clk 00:20:10]} {[%emt 00:00:03]} b6 {[%clk 00:20:12]}
{[%emt 00:00:02]} 3. d4 {[%clk 00:19:52]} {[%emt 00:00:23]} cxd4 {[%clk
00:20:16]} {[%emt 00:00:02]} 4. Nxd4 {[%clk 00:19:55]} {[%emt 00:00:01]} Bb7
{[%clk 00:20:20]} {[%emt 00:00:02]} 5. Nc3 {[%clk 00:19:33]} {[%emt 00:00:26]}
g6 {[%clk 00:20:19]} {[%emt 00:00:06]} 6. Be3 {[%clk 00:19:17]} {[%emt
00:00:20]} Bg7 {[%clk 00:20:22]} {[%emt 00:00:02]} 7. f3 {[%clk 00:19:19]}
{[%emt 00:00:03]} Nc6 {[%clk 00:20:25]} {[%emt 00:00:02]} 8. Bc4 {[%clk
00:18:11]} {[%emt 00:01:13]} Rc8 {[%clk 00:19:42]} {[%emt 00:00:48]} 9. Bb3
{[%clk 00:18:08]} {[%emt 00:00:09]} Nf6 {[%clk 00:18:42]} {[%emt 00:01:05]} 10.
Qd2 {[%clk 00:17:53]} {[%emt 00:00:19]} Nxd4 {[%clk 00:18:39]} {[%emt
00:00:08]} 11. Bxd4 {[%clk 00:17:47]} {[%emt 00:00:12]} d6 {[%clk 00:18:19]}
{[%emt 00:00:25]} 12. O-O-O {[%clk 00:17:19]} {[%emt 00:00:33]} O-O {[%clk
00:18:01]} {[%emt 00:00:23]} 13. Kb1 {[%clk 00:16:59]} {[%emt 00:00:25]} Qd7
{[%clk 00:16:32]} {[%emt 00:01:35]} 14. g4 {[%clk 00:16:33]} {[%emt 00:00:31]}
b5 {[%clk 00:16:24]} {[%emt 00:00:13]} 15. h4 {[%clk 00:14:42]} {[%emt
00:01:56]} b4 {[%clk 00:16:08]} {[%emt 00:00:21]} 16. Nd5 {[%clk 00:13:59]}
{[%emt 00:00:47]} Nxd5 {[%clk 00:15:46]} {[%emt 00:00:27]} 17. Bxd5 {[%clk
00:13:37]} {[%emt 00:00:28]} Bxd5 {[%clk 00:15:10]} {[%emt 00:00:40]} 18. exd5
{[%clk 00:13:40]} {[%emt 00:00:02]} Bxd4 {[%clk 00:08:20]} {[%emt 00:06:56]} 19.
Qxd4 {[%clk 00:13:43]} {[%emt 00:00:02]} Qc7 {[%clk 00:07:04]} {[%emt
00:01:21]} 20. Rh2 {[%clk 00:12:33]} {[%emt 00:01:15]} Qc4 {[%clk 00:06:49]}
{[%emt 00:00:20]} 21. h5 {[%clk 00:11:50]} {[%emt 00:00:48]} Qxd4 {[%clk
00:06:01]} {[%emt 00:00:53]} 22. Rxd4 {[%clk 00:11:53]} {[%emt 00:00:02]} a5
{[%clk 00:06:05]} 23. Kc1 {[%clk 00:06:56]} {[%emt 00:05:03]} Kg7 {[%clk
00:05:45]} {[%emt 00:00:26]} 24. Kd2 {[%clk 00:06:21]} {[%emt 00:00:39]} Rc5
{[%clk 00:05:34]} {[%emt 00:00:16]} 25. Kd3 {[%clk 00:06:03]} {[%emt 00:00:23]}
g5 {[%clk 00:05:06]} {[%emt 00:00:32]} 26. Re2 {[%clk 00:04:46]} {[%emt
00:01:22]} Re8 {[%clk 00:03:57]} {[%emt 00:01:14]} 27. Ree4 {[%clk 00:01:44]}
{[%emt 00:03:08]} Rec8 {[%clk 00:03:37]} {[%emt 00:00:25]} 28. Re2 {[%clk
00:01:47]} {[%emt 00:00:03]} R8c7 {[%clk 00:03:41]} 29. Rf2 {[%clk 00:00:48]}
{[%emt 00:01:03]} Rd7 {[%clk 00:03:31]} {[%emt 00:00:15]} 30. Re2 {[%clk
00:00:51]} {[%emt 00:00:01]} Kf6 {[%clk 00:03:28]} {[%emt 00:00:09]} 31. Kd2
{[%clk 00:00:23]} {[%emt 00:00:33]} e5 {[%clk 00:03:16]} {[%emt 00:00:17]} 32.
dxe6 {[%clk 00:00:25]} {[%emt 00:00:03]} fxe6 {[%clk 00:03:20]} 33. Kd1 {[%clk
00:00:22]} {[%emt 00:00:08]} e5 {[%clk 00:03:04]} {[%emt 00:00:22]} 34. Rde4
{[%clk 00:00:19]} {[%emt 00:00:07]} Rf7 {[%clk 00:02:54]} {[%emt 00:00:15]} 35.
R4e3 {[%clk 00:00:11]} {[%emt 00:00:13]} Ke6 {[%clk 00:02:45]} {[%emt
00:00:13]} 36. c3 {[%clk 00:00:10]} {[%emt 00:00:06]} bxc3 {[%clk 00:02:32]}
{[%emt 00:00:18]} 37. bxc3 {[%clk 00:00:13]} {[%emt 00:00:03]} Rf4 {[%clk
00:02:34]} {[%emt 00:00:03]} 38. Kc2 {[%clk 00:00:10]} {[%emt 00:00:08]} Ra4
{[%clk 00:02:32]} {[%emt 00:00:07]} 39. Kb3 {[%clk 00:00:11]} {[%emt 00:00:04]}
Rf4 {[%clk 00:02:16]} {[%emt 00:00:20]} 40. Kc2 {[%clk 00:00:10]} {[%emt
00:00:07]} Rb5 {[%clk 00:02:17]} {[%emt 00:00:04]} 41. Kd3 {[%clk 00:00:08]}
{[%emt 00:00:06]} Ra4 {[%clk 00:02:10]} {[%emt 00:00:13]} 42. c4 {[%clk
00:00:09]} {[%emt 00:00:04]} Rbb4 {[%clk 00:01:50]} {[%emt 00:00:25]} 43. Re4
{[%clk 00:00:12]} {[%emt 00:00:01]} Ra3+ {[%clk 00:01:49]} {[%emt 00:00:06]} 44.
Kd2 {[%clk 00:00:09]} {[%emt 00:00:09]} Rb2+ {[%clk 00:01:36]} {[%emt
00:00:18]} 45. Ke1 {[%clk 00:00:11]} {[%emt 00:00:03]} Rxe2+ {[%clk 00:01:33]}
{[%emt 00:00:08]} 46. Kxe2 {[%clk 00:00:14]} {[%emt 00:00:01]} Rxa2+ {[%clk
00:01:37]} {[%emt 00:00:01]} 47. Kd3 {[%clk 00:00:08]} {[%emt 00:00:11]} a4
{[%clk 00:01:26]} {[%emt 00:00:17]} 48. Re1 {[%clk 00:00:09]} {[%emt 00:00:03]}
Ra3+ {[%clk 00:01:27]} {[%emt 00:00:05]} 49. Ke2 {[%clk 00:00:06]} {[%emt
00:00:08]} Rc3 {[%clk 00:01:31]} 50. Ra1 {[%clk 00:00:08]} {[%emt 00:00:04]}
Rxc4 {[%clk 00:01:35]} 51. Kd3 {[%clk 00:00:12]} Rd4+ {[%clk 00:01:38]} {[%emt
00:00:03]} 52. Ke3 {[%clk 00:00:15]} {[%emt 00:00:01]} Rb4 {[%clk 00:01:36]}
{[%emt 00:00:07]} 53. Kd3 {[%clk 00:00:18]} {[%emt 00:00:02]} Rb3+ {[%clk
00:01:40]} 54. Ke2 {[%clk 00:00:21]} {[%emt 00:00:02]} a3 {[%clk 00:01:44]} 55.
Kf2 {[%clk 00:00:22]} {[%emt 00:00:04]} d5 {[%clk 00:01:40]} {[%emt 00:00:10]}
56. Ke2 {[%clk 00:00:25]} {[%emt 00:00:02]} d4 {[%clk 00:01:43]} {[%emt
00:00:02]} 57. Kf2 {[%clk 00:00:13]} {[%emt 00:00:16]} Kd5 {[%clk 00:01:47]}
{[%emt 00:00:02]} 58. Ke2 {[%clk 00:00:17]} {[%emt 00:00:01]} Rb2+ {[%clk
00:01:46]} {[%emt 00:00:05]} 59. Kd3 {[%clk 00:00:17]} {[%emt 00:00:06]} Rf2
{[%clk 00:01:46]} {[%emt 00:00:04]} 0-1



[ePGN "0.1;DGT LiveChess/2.2.6"]

[Event "MČR juniorů a juniorek v rapid šachu 2024"]
[Site "Hotel Fit Fun, Harrachov, Czech Republic"]
[Date "2024.09.21"]
[Round "4.7"]
[White "Ret Adam Josef"]
[Black "Pejrimovska Viola Ruby"]
[Result "0-1"]
[TimeControl "20+5"]
[WhiteFideId "384240"]
[BlackFideId "23709529"]
[WhiteElo "2038"]
[BlackElo "1876"]

1. c4 {[%clk 00:20:08]} {[%emt 00:00:01]} Nf6 {[%clk 00:20:08]} {[%emt
00:00:04]} 2. g3 {[%clk 00:20:12]} g6 {[%clk 00:20:12]} 3. Bg2 {[%clk
00:20:16]} Bg7 {[%clk 00:20:16]} {[%emt 00:00:01]} 4. Nc3 {[%clk 00:20:19]}
{[%emt 00:00:03]} O-O {[%clk 00:20:17]} {[%emt 00:00:03]} 5. d4 {[%clk
00:20:18]} {[%emt 00:00:06]} d6 {[%clk 00:20:21]} {[%emt 00:00:02]} 6. Nf3
{[%clk 00:20:20]} {[%emt 00:00:02]} Nbd7 {[%clk 00:20:09]} {[%emt 00:00:18]} 7.
O-O {[%clk 00:20:23]} {[%emt 00:00:02]} e5 {[%clk 00:20:13]} {[%emt 00:00:01]}
8. e3 {[%clk 00:20:27]} {[%emt 00:00:03]} c6 {[%clk 00:19:57]} {[%emt
00:00:18]} 9. b3 {[%clk 00:20:31]} {[%emt 00:00:03]} Nh5 {[%clk 00:19:15]}
{[%emt 00:00:46]} 10. Ba3 {[%clk 00:18:53]} {[%emt 00:01:42]} c5 {[%clk
00:18:00]} {[%emt 00:01:20]} 11. Bb2 {[%clk 00:16:47]} {[%emt 00:02:12]} f5
{[%clk 00:17:32]} {[%emt 00:00:33]} 12. Nb5 {[%clk 00:15:49]} {[%emt 00:01:03]}
cxd4 {[%clk 00:15:14]} {[%emt 00:02:23]} 13. exd4 {[%clk 00:15:40]} {[%emt
00:00:14]} e4 {[%clk 00:12:05]} {[%emt 00:03:14]} 14. Ne1 {[%clk 00:15:44]}
{[%emt 00:00:01]} Nc5 {[%clk 00:11:34]} {[%emt 00:00:36]} 15. dxc5 {[%clk
00:14:15]} {[%emt 00:01:34]} Bxb2 {[%clk 00:11:34]} {[%emt 00:00:05]} 16. Rb1
{[%clk 00:14:15]} {[%emt 00:00:05]} Be5 {[%clk 00:11:07]} {[%emt 00:00:31]} 17.
Qd5+ {[%clk 00:13:51]} {[%emt 00:00:29]} Kg7 {[%clk 00:10:20]} {[%emt
00:00:53]} 18. Nxd6 {[%clk 00:12:17]} {[%emt 00:01:39]} Qe7 {[%clk 00:09:30]}
{[%emt 00:00:54]} 19. f3 {[%clk 00:11:14]} {[%emt 00:01:08]} Nxg3 {[%clk
00:05:57]} {[%emt 00:03:38]} 20. hxg3 {[%clk 00:08:53]} {[%emt 00:02:26]} Bxg3
{[%clk 00:06:00]} {[%emt 00:00:02]} 21. fxe4 {[%clk 00:08:10]} Be6 {[%clk
00:04:14]} {[%emt 00:02:38]} 22. Qd4+ {[%clk 00:07:41]} Kg8 {[%clk 00:04:16]}
{[%emt 00:00:39]} 23. exf5 {[%clk 00:07:35]} {[%emt 00:00:10]} gxf5 {[%clk
00:03:37]} {[%emt 00:00:45]} 24. Nf3 {[%clk 00:04:43]} {[%emt 00:02:57]} Rf6
{[%clk 00:02:29]} {[%emt 00:01:12]} 25. Qe3 {[%clk 00:04:02]} {[%emt 00:00:46]}
f4 {[%clk 00:02:06]} {[%emt 00:00:28]} 26. Qe5 {[%clk 00:03:54]} {[%emt
00:00:13]} Rg6 {[%clk 00:00:42]} {[%emt 00:01:30]} 27. Rb2 {[%clk 00:03:11]}
{[%emt 00:00:48]} Rf8 {[%clk 00:00:43]} {[%emt 00:00:03]} 28. Re2 {[%clk
00:03:00]} {[%emt 00:00:16]} Qd7 {[%clk 00:00:20]} {[%emt 00:00:29]} 29. Nd4
{[%clk 00:02:18]} {[%emt 00:00:47]} f3 {[%clk 00:00:10]} {[%emt 00:00:15]} 30.
Qe4 {[%clk 00:00:36]} {[%emt 00:01:47]} fxe2 {[%clk 00:00:12]} {[%emt
00:00:03]} 31. Rxf8+ {[%clk 00:00:39]} {[%emt 00:00:02]} Kxf8 {[%clk 00:00:15]}
{[%emt 00:00:02]} 32. Qxe2 {[%clk 00:00:32]} {[%emt 00:00:13]} Bg4 {[%clk
00:00:11]} {[%emt 00:00:08]} 33. Qf1+ {[%clk 00:00:24]} {[%emt 00:00:13]} Kg7
{[%clk 00:00:14]} {[%emt 00:00:02]} 34. N4f5+ {[%clk 00:00:17]} {[%emt
00:00:11]} Bxf5 {[%clk 00:00:12]} {[%emt 00:00:07]} 35. Nxf5+ {[%clk 00:00:11]}
{[%emt 00:00:12]} Kg8 {[%clk 00:00:12]} {[%emt 00:00:04]} 36. Qf3 {[%clk
00:00:06]} {[%emt 00:00:12]} Be5 {[%clk 00:00:10]} {[%emt 00:00:06]} 37. Qd5+
{[%clk 00:00:09]} {[%emt 00:00:01]} Qxd5 {[%clk 00:00:14]} {[%emt 00:00:02]} 38.
cxd5 {[%clk 00:00:13]} {[%emt 00:00:01]} Kf7 {[%emt 00:00:15]} 39. Kf1 {[%clk
00:00:12]} {[%emt 00:00:02]} Rf6 {[%clk 00:00:10]} {[%emt 00:00:02]} 40. Be4
{[%clk 00:00:16]} Kg6 {[%clk 00:00:10]} {[%emt 00:00:05]} 41. Ke2 {[%clk
00:00:06]} {[%emt 00:00:15]} Rxf5 {[%clk 00:00:14]} {[%emt 00:00:01]} 42. d6
{[%clk 00:00:09]} {[%emt 00:00:03]} Bf6 {[%clk 00:00:15]} {[%emt 00:00:04]} 0-1



[ePGN "0.1;DGT LiveChess/2.2.6"]

[Event "MČR juniorů a juniorek v rapid šachu 2024"]
[Site "Hotel Fit Fun, Harrachov, Czech Republic"]
[Date "2024.09.21"]
[Round "4.8"]
[White "Vilimek Vit"]
[Black "Dobsa Emma"]
[Result "1-0"]
[TimeControl "20+5"]
[WhiteFideId "23718218"]
[BlackFideId "23709391"]
[WhiteElo "2025"]
[BlackElo "1830"]

1. e4 {[%clk 00:20:09]} e5 {[%clk 00:20:09]} {[%emt 00:00:03]} 2. Nf3 {[%clk
00:20:07]} {[%emt 00:00:07]} Nc6 {[%clk 00:20:13]} 3. Nc3 {[%clk 00:20:11]} Nf6
{[%clk 00:20:17]} {[%emt 00:00:02]} 4. h3 {[%clk 00:20:15]} d5 {[%clk
00:19:47]} {[%emt 00:00:36]} 5. exd5 {[%clk 00:20:16]} {[%emt 00:00:04]} Nxd5
{[%clk 00:19:50]} {[%emt 00:00:01]} 6. Bb5 {[%clk 00:20:20]} Nxc3 {[%clk
00:19:18]} {[%emt 00:00:38]} 7. bxc3 {[%clk 00:20:24]} {[%emt 00:00:01]} Bd6
{[%clk 00:18:40]} {[%emt 00:00:42]} 8. d4 {[%clk 00:20:28]} exd4 {[%clk
00:18:39]} {[%emt 00:00:07]} 9. Qe2+ {[%clk 00:19:41]} {[%emt 00:00:51]} Qe7
{[%clk 00:18:24]} {[%emt 00:00:21]} 10. Qxe7+ {[%clk 00:19:44]} {[%emt
00:00:02]} Bxe7 {[%clk 00:18:26]} {[%emt 00:00:03]} 11. cxd4 {[%clk 00:19:45]}
{[%emt 00:00:04]} O-O {[%clk 00:18:20]} {[%emt 00:00:11]} 12. O-O {[%emt
00:00:04]} Bf6 {[%clk 00:17:33]} {[%emt 00:00:50]} 13. c3 {[%clk 00:19:13]}
{[%emt 00:00:40]} Bd7 {[%clk 00:16:54]} {[%emt 00:00:43]} 14. Bd3 {[%clk
00:19:15]} {[%emt 00:00:03]} Rad8 {[%clk 00:16:51]} {[%emt 00:00:08]} 15. Bf4
{[%clk 00:19:14]} {[%emt 00:00:06]} Rc8 {[%clk 00:16:48]} {[%emt 00:00:09]} 16.
Rab1 {[%clk 00:19:02]} {[%emt 00:00:17]} b6 {[%clk 00:16:44]} {[%emt 00:00:09]}
17. Ba6 {[%clk 00:18:57]} {[%emt 00:00:10]} Rce8 {[%clk 00:16:32]} {[%emt
00:00:17]} 18. Bxc7 {[%clk 00:18:40]} {[%emt 00:00:22]} Bf5 {[%clk 00:16:00]}
{[%emt 00:00:37]} 19. Rbe1 {[%clk 00:18:42]} {[%emt 00:00:03]} Be4 {[%clk
00:15:36]} {[%emt 00:00:30]} 20. Bb5 {[%clk 00:18:17]} {[%emt 00:00:30]} Bxf3
{[%clk 00:14:46]} {[%emt 00:00:55]} 21. gxf3 {[%clk 00:18:19]} {[%emt
00:00:03]} Rc8 {[%clk 00:14:49]} {[%emt 00:00:03]} 22. Bf4 {[%clk 00:17:40]}
{[%emt 00:00:42]} Ne7 {[%clk 00:14:25]} {[%emt 00:00:30]} 23. Bd6 {[%clk
00:17:31]} {[%emt 00:00:15]} Rfe8 {[%clk 00:14:29]} {[%emt 00:00:01]} 24. Bxe8
{[%clk 00:17:33]} {[%emt 00:00:02]} 1-0



[ePGN "0.1;DGT LiveChess/2.2.6"]

[Event "MČR juniorů a juniorek v rapid šachu 2024"]
[Site "Hotel Fit Fun, Harrachov, Czech Republic"]
[Date "2024.09.21"]
[Round "4.9"]
[White "Koranda Kosma"]
[Black "Juhanak Daniel"]
[Result "1/2-1/2"]
[TimeControl "20+5"]
[WhiteFideId "23772948"]
[BlackFideId "23718765"]
[WhiteElo "1884"]
[BlackElo "1982"]

1. e4 {[%clk 00:20:07]} {[%emt 00:00:02]} e6 {[%clk 00:20:08]} {[%emt
00:00:03]} 2. d4 {[%clk 00:20:10]} d5 {[%clk 00:20:12]} 3. exd5 {[%clk
00:20:14]} {[%emt 00:00:02]} exd5 {[%clk 00:20:16]} 4. Bd3 {[%clk 00:20:17]}
{[%emt 00:00:04]} Nf6 {[%clk 00:20:17]} {[%emt 00:00:02]} 5. Nf3 {[%clk
00:20:14]} {[%emt 00:00:09]} c5 {[%clk 00:20:18]} {[%emt 00:00:04]} 6. dxc5
{[%clk 00:19:56]} {[%emt 00:00:23]} Bxc5 {[%clk 00:20:21]} {[%emt 00:00:02]} 7.
Qe2+ {[%clk 00:19:30]} {[%emt 00:00:32]} Qe7 {[%clk 00:18:49]} {[%emt
00:01:37]} 8. Qxe7+ {[%clk 00:19:26]} {[%emt 00:00:09]} Kxe7 {[%clk 00:18:31]}
{[%emt 00:00:23]} 9. O-O {[%clk 00:19:12]} {[%emt 00:00:20]} Nc6 {[%clk
00:17:54]} {[%emt 00:00:41]} 10. Re1+ {[%clk 00:18:52]} {[%emt 00:00:25]} Be6
{[%clk 00:17:58]} 11. Ng5 {[%clk 00:17:44]} {[%emt 00:01:13]} Rae8 {[%clk
00:16:56]} {[%emt 00:01:07]} 12. Nxe6 {[%clk 00:17:06]} {[%emt 00:00:43]} fxe6
{[%clk 00:16:59]} {[%emt 00:00:02]} 13. Bg5 {[%clk 00:16:08]} {[%emt 00:01:02]}
Rhf8 {[%clk 00:16:04]} {[%emt 00:01:00]} 14. Bxh7 {[%clk 00:14:20]} {[%emt
00:01:54]} Kd7 {[%clk 00:15:18]} {[%emt 00:00:51]} 15. Bg6 {[%clk 00:13:34]}
{[%emt 00:00:51]} Rc8 {[%clk 00:14:47]} {[%emt 00:00:35]} 16. h3 {[%clk
00:08:41]} {[%emt 00:04:59]} Ne4 {[%clk 00:13:16]} {[%emt 00:01:36]} 17. Be3
{[%clk 00:08:22]} {[%emt 00:00:23]} Bxe3 {[%clk 00:13:02]} {[%emt 00:00:20]} 18.
fxe3 {[%clk 00:08:14]} {[%emt 00:00:14]} Nb4 {[%clk 00:12:15]} {[%emt
00:00:51]} 19. Bxe4 {[%clk 00:06:06]} {[%emt 00:02:13]} dxe4 {[%clk 00:12:19]}
20. Nc3 {[%clk 00:05:27]} {[%emt 00:00:44]} Nxc2 {[%clk 00:11:58]} {[%emt
00:00:26]} 21. Rad1+ {[%clk 00:05:21]} {[%emt 00:00:12]} Ke7 {[%clk 00:11:59]}
{[%emt 00:00:03]} 22. Re2 {[%clk 00:05:18]} {[%emt 00:00:07]} Nb4 {[%clk
00:11:41]} {[%emt 00:00:25]} 23. a3 {[%clk 00:05:06]} {[%emt 00:00:17]} Nc6
{[%clk 00:11:08]} {[%emt 00:00:38]} 24. Red2 {[%clk 00:04:37]} {[%emt
00:00:33]} Ne5 {[%clk 00:10:26]} {[%emt 00:00:47]} 25. Nxe4 {[%clk 00:03:59]}
{[%emt 00:00:43]} Rc7 {[%clk 00:09:43]} {[%emt 00:00:48]} 26. b3 {[%clk
00:03:50]} {[%emt 00:00:14]} b5 {[%clk 00:09:04]} {[%emt 00:00:45]} 27. Rf1
{[%clk 00:03:20]} {[%emt 00:00:31]} Rxf1+ 28. Kxf1 Rc1+ 29. Ke2 {[%clk
00:03:18]} {[%emt 00:00:09]} Ra1 {[%clk 00:08:05]} {[%emt 00:00:21]} 30. Nc3
{[%clk 00:02:55]} {[%emt 00:00:28]} Rxa3 {[%clk 00:07:10]} {[%emt 00:01:00]} 31.
Nxb5 {[%clk 00:02:45]} {[%emt 00:00:15]} Rxb3 {[%clk 00:06:56]} {[%emt
00:00:20]} 32. Nxa7 {[%clk 00:02:37]} {[%emt 00:00:13]} Nc4 {[%clk 00:05:16]}
{[%emt 00:01:44]} 33. Nc6+ {[%clk 00:02:29]} {[%emt 00:00:12]} Kf6 {[%clk
00:05:10]} {[%emt 00:00:11]} 34. Rd3 {[%clk 00:02:21]} {[%emt 00:00:08]} Rb2+
{[%clk 00:04:54]} {[%emt 00:00:27]} 35. Kf1 {[%clk 00:02:10]} {[%emt 00:00:14]}
Kf5 {[%clk 00:04:31]} {[%emt 00:00:26]} 36. Rc3 {[%clk 00:01:51]} {[%emt
00:00:27]} Nd2+ {[%clk 00:03:37]} {[%emt 00:00:59]} 37. Ke1 {[%clk 00:01:14]}
{[%emt 00:00:42]} Ne4 {[%clk 00:00:57]} {[%emt 00:02:46]} 38. Rc2 {[%clk
00:01:01]} {[%emt 00:00:18]} Rb1+ {[%emt 00:01:13]} 1/2-1/2



[ePGN "0.1;DGT LiveChess/2.2.6"]

[Event "MČR juniorů a juniorek v rapid šachu 2024"]
[Site "Hotel Fit Fun, Harrachov, Czech Republic"]
[Date "2024.09.21"]
[Round "5.1"]
[White "Skypala Ondrej"]
[Black "Markina Sofiia"]
[Result "1-0"]
[TimeControl "20+5"]
[WhiteFideId "366285"]
[BlackFideId "23744014"]
[WhiteElo "2033"]
[BlackElo "1885"]

1. c4 {[%clk 00:20:08]} {[%emt 00:00:02]} Nf6 {[%clk 00:20:03]} {[%emt
00:00:07]} 2. g3 {[%clk 00:20:11]} {[%emt 00:00:02]} c6 {[%clk 00:20:07]}
{[%emt 00:00:02]} 3. Bg2 {[%clk 00:20:14]} d5 {[%clk 00:20:11]} 4. Nf3 {[%clk
00:20:18]} {[%emt 00:00:02]} Bf5 {[%clk 00:20:11]} {[%emt 00:00:05]} 5. cxd5
{[%clk 00:20:15]} {[%emt 00:00:08]} cxd5 {[%clk 00:20:06]} {[%emt 00:00:10]} 6.
Qb3 {[%clk 00:19:29]} {[%emt 00:00:51]} Qd7 {[%clk 00:19:37]} {[%emt 00:00:34]}
7. Ne5 {[%clk 00:18:27]} {[%emt 00:01:07]} Qc7 {[%clk 00:19:41]} {[%emt
00:00:01]} 8. Nc3 {[%clk 00:18:25]} {[%emt 00:00:06]} e6 {[%clk 00:19:34]}
{[%emt 00:00:12]} 9. d3 {[%clk 00:18:03]} {[%emt 00:00:27]} a6 {[%clk
00:18:28]} {[%emt 00:01:12]} 10. Qa4+ {[%clk 00:15:50]} {[%emt 00:02:18]} Nc6
{[%clk 00:17:29]} {[%emt 00:01:04]} 11. Bf4 {[%clk 00:15:14]} {[%emt 00:00:41]}
Bd6 {[%clk 00:17:26]} {[%emt 00:00:08]} 12. Nb5 {[%clk 00:15:14]} {[%emt
00:00:05]} axb5 {[%clk 00:15:57]} {[%emt 00:01:35]} 13. Qxa8+ {[%clk 00:15:17]}
{[%emt 00:00:02]} Nd8 {[%clk 00:16:00]} {[%emt 00:00:01]} 14. Rc1 {[%clk
00:13:43]} {[%emt 00:01:39]} Qb6 {[%clk 00:15:58]} {[%emt 00:00:07]} 15. O-O
{[%clk 00:13:11]} {[%emt 00:00:37]} O-O {[%clk 00:15:58]} {[%emt 00:00:04]} 16.
Rc8 {[%clk 00:13:05]} {[%emt 00:00:11]} g5 {[%clk 00:14:47]} {[%emt 00:01:17]}
17. Nd7 {[%clk 00:12:59]} {[%emt 00:00:11]} Nxd7 {[%clk 00:14:19]} {[%emt
00:00:33]} 18. Bxd6 {[%clk 00:13:02]} {[%emt 00:00:02]} Qxd6 {[%clk 00:14:18]}
{[%emt 00:00:06]} 19. Rxd8 {[%clk 00:13:05]} {[%emt 00:00:01]} Qb6 {[%clk
00:12:56]} {[%emt 00:01:28]} 20. Rxf8+ {[%clk 00:13:06]} {[%emt 00:00:04]} Nxf8
{[%clk 00:13:00]} {[%emt 00:00:02]} 21. Rc1 {[%clk 00:12:56]} {[%emt 00:00:14]}
Kg7 {[%clk 00:12:22]} {[%emt 00:00:43]} 22. Rc8 {[%clk 00:12:58]} {[%emt
00:00:02]} Qd6 {[%clk 00:11:40]} {[%emt 00:00:47]} 23. h3 {[%clk 00:12:26]}
{[%emt 00:00:38]} Ng6 {[%clk 00:09:30]} {[%emt 00:02:15]} 24. Rg8+ {[%clk
00:12:28]} {[%emt 00:00:03]} Kh6 {[%clk 00:09:31]} {[%emt 00:00:04]} 25. Qxb7
{[%clk 00:12:20]} {[%emt 00:00:15]} Ne5 {[%clk 00:08:23]} {[%emt 00:01:13]} 26.
Qxb5 {[%clk 00:11:53]} {[%emt 00:00:32]} Qc7 {[%clk 00:08:13]} {[%emt
00:00:15]} 27. Qb8 {[%clk 00:11:45]} {[%emt 00:00:12]} Qc1+ {[%clk 00:08:17]}
{[%emt 00:00:02]} 28. Kh2 {[%clk 00:11:49]} {[%emt 00:00:01]} Ng6 {[%clk
00:06:59]} {[%emt 00:01:23]} 29. Qb7 {[%clk 00:11:49]} {[%emt 00:00:05]} Ne5
{[%clk 00:05:58]} {[%emt 00:01:06]} 30. d4 {[%clk 00:11:34]} {[%emt 00:00:20]}
Ng6 {[%clk 00:04:53]} {[%emt 00:01:11]} 31. Qxf7 {[%clk 00:11:35]} {[%emt
00:00:03]} g4 {[%clk 00:04:53]} {[%emt 00:00:07]} 32. Qg7+ {[%clk 00:11:20]}
{[%emt 00:00:18]} Kh5 {[%clk 00:04:57]} {[%emt 00:00:02]} 33. Qxh7+ {[%clk
00:11:14]} {[%emt 00:00:11]} Kg5 {[%clk 00:04:40]} {[%emt 00:00:22]} 34. Qh4#
{[%clk 00:11:16]} {[%emt 00:00:02]} 1-0



[ePGN "0.1;DGT LiveChess/2.2.6"]